[Event "Titled Tuesday Blitz September 27 Early 2022"]
[White "Dilmukhametov, Artur"]
[Black "Von Buelow, Georg"]
[WhiteFideId "24179922"]
[BlackFideId "4620658"]
[WhiteElo "2206"]
[BlackElo "2220"]
[Result "0-1"]
[Round "11"]
[TimeControl "180+1"]
[Date "2022.09.27"]
[WhiteClock "0:02:12"]
[BlackClock "0:01:44"]

1. e4 {[%clk 0:03:00]}  c5 {[%clk 0:02:59]} 2. c3 {[%clk 0:03:00]}  Nf6 {[%clk 0:02:59]} 3. e5 {[%clk 0:02:58]}  Nd5 {[%clk 0:02:59]} 4. d4 {[%clk 0:02:57]}  cxd4 {[%clk 0:03:00]} 5. cxd4 {[%clk 0:02:56]}  d6 {[%clk 0:03:00]} 6. exd6 {[%clk 0:02:55]}  Qxd6 {[%clk 0:03:00]} 7. Nf3 {[%clk 0:02:54]}  Nc6 {[%clk 0:02:56]} 8. Nc3 {[%clk 0:02:54]}  Nxc3 {[%clk 0:02:56]} 9. bxc3 {[%clk 0:02:53]}  e6 {[%clk 0:02:57]} 10. Bb5 {[%clk 0:02:52]}  Be7 {[%clk 0:02:53]} 11. O-O {[%clk 0:02:52]}  O-O {[%clk 0:02:53]} 12. Re1 {[%clk 0:02:49]}  b6 {[%clk 0:02:49]} 13. Ne5 {[%clk 0:02:45]}  Nxe5 {[%clk 0:02:43]} 14. Rxe5 {[%clk 0:02:45]}  Bb7 {[%clk 0:02:40]} 15. Qg4 {[%clk 0:02:38]}  Bf6 {[%clk 0:02:25]} 16. Rh5 {[%clk 0:02:33]}  g6 {[%clk 0:02:17]} 17. Rh3 {[%clk 0:02:29]}  Rfd8 {[%clk 0:02:05]} 18. Bf4 {[%clk 0:02:28]}  e5 {[%clk 0:01:51]} 19. Bg3 {[%clk 0:02:21]}  Qd5 {[%clk 0:01:45]} 20. Be2 {[%clk 0:02:12]}  Qxg2# {[%clk 0:01:44]} 0-1


[Site "https://www.chess.com"]

[Event "Titled Tuesday Blitz September 27 Early 2022"]
[White "Ferreira, Vitor Hugo Vieira"]
[Black "Yurovskykh, Oleksandr"]
[WhiteFideId "2119765"]
[BlackFideId "14134020"]
[WhiteElo "2168"]
[BlackElo "2303"]
[Result "0-1"]
[Round "11"]
[TimeControl "180+1"]
[Date "2022.09.27"]
[WhiteClock "0:00:18"]
[BlackClock "0:00:14"]

1. e4 {[%clk 0:03:00]}  d5 {[%clk 0:02:56]} 2. exd5 {[%clk 0:03:00]}  Qxd5 {[%clk 0:02:57]} 3. Nc3 {[%clk 0:03:00]}  Qd8 {[%clk 0:02:57]} 4. d4 {[%clk 0:02:59]}  Nf6 {[%clk 0:02:58]} 5. Nf3 {[%clk 0:02:54]}  Bg4 {[%clk 0:02:57]} 6. Bc4 {[%clk 0:02:53]}  e6 {[%clk 0:02:57]} 7. Be3 {[%clk 0:02:50]}  c6 {[%clk 0:02:57]} 8. h3 {[%clk 0:02:50]}  Bh5 {[%clk 0:02:57]} 9. g4 {[%clk 0:02:51]}  Bg6 {[%clk 0:02:57]} 10. Ne5 {[%clk 0:02:51]}  Nbd7 {[%clk 0:02:50]} 11. Qe2 {[%clk 0:02:51]}  Nxe5 {[%clk 0:02:32]} 12. dxe5 {[%clk 0:02:51]}  Nd5 {[%clk 0:02:32]} 13. O-O-O {[%clk 0:02:50]}  Qa5 {[%clk 0:02:28]} 14. Nxd5 {[%clk 0:02:49]}  exd5 {[%clk 0:02:28]} 15. Bb3 {[%clk 0:02:47]}  Bc5 {[%clk 0:02:16]} 16. Bd2 {[%clk 0:02:48]}  Qb6 {[%clk 0:02:14]} 17. f4 {[%clk 0:02:46]}  Be4 {[%clk 0:02:14]} 18. Rhf1 {[%clk 0:02:31]}  O-O-O {[%clk 0:02:09]} 19. f5 {[%clk 0:02:22]}  Rhe8 {[%clk 0:02:03]} 20. Bf4 {[%clk 0:02:18]}  Bd4 {[%clk 0:02:00]} 21. Qh2 {[%clk 0:02:04]}  a5 {[%clk 0:01:42]} 22. a4 {[%clk 0:01:52]}  Be3+ {[%clk 0:01:23]} 23. Bxe3 {[%clk 0:01:44]}  Qxe3+ {[%clk 0:01:24]} 24. Rd2 {[%clk 0:01:42]}  Qb6 {[%clk 0:00:58]} 25. Re1 {[%clk 0:01:38]}  Qc7 {[%clk 0:00:58]} 26. Rxe4 {[%clk 0:00:58]}  dxe4 {[%clk 0:00:58]} 27. Rxd8+ {[%clk 0:00:58]}  Rxd8 {[%clk 0:00:44]} 28. Qf4 {[%clk 0:00:55]}  f6 {[%clk 0:00:44]} 29. Be6+ {[%clk 0:00:53]}  Kb8 {[%clk 0:00:44]} 30. Qxe4 {[%clk 0:00:50]}  Qxe5 {[%clk 0:00:44]} 31. Qxe5+ {[%clk 0:00:50]}  fxe5 {[%clk 0:00:45]} 32. g5 {[%clk 0:00:49]}  Rd4 {[%clk 0:00:41]} 33. f6 {[%clk 0:00:44]}  gxf6 {[%clk 0:00:41]} 34. gxf6 {[%clk 0:00:44]}  Kc7 {[%clk 0:00:35]} 35. f7 {[%clk 0:00:44]}  Rd8 {[%clk 0:00:28]} 36. Bf5 {[%clk 0:00:42]}  h6 {[%clk 0:00:26]} 37. Bh7 {[%clk 0:00:41]}  Kd6 {[%clk 0:00:21]} 38. Bg6 {[%clk 0:00:31]}  Ke7 {[%clk 0:00:21]} 39. h4 {[%clk 0:00:30]}  Rd4 {[%clk 0:00:20]} 40. h5 {[%clk 0:00:28]}  Rxa4 {[%clk 0:00:20]} 41. Kd2 {[%clk 0:00:27]}  Rf4 {[%clk 0:00:20]} 42. Ke3 {[%clk 0:00:27]}  Rxf7 {[%clk 0:00:20]} 43. Ke4 {[%clk 0:00:25]}  Rf2 {[%clk 0:00:13]} 44. Kxe5 {[%clk 0:00:25]}  Rh2 {[%clk 0:00:14]} 45. Kd4 {[%clk 0:00:25]}  Kd6 {[%clk 0:00:14]} 46. b3 {[%clk 0:00:24]}  Rh4+ {[%clk 0:00:14]} 47. Kc3 {[%clk 0:00:22]}  Kc5 {[%clk 0:00:14]} 48. Kd3 {[%clk 0:00:22]}  b5 {[%clk 0:00:13]} 49. c3 {[%clk 0:00:21]}  a4 {[%clk 0:00:13]} 50. b4+ {[%clk 0:00:21]}  Kd6 {[%clk 0:00:13]} 51. Bf7 {[%clk 0:00:21]}  Rh2 {[%clk 0:00:12]} 52. Kd4 {[%clk 0:00:18]}  a3 {[%clk 0:00:12]} 53. c4 {[%clk 0:00:18]}  a2 {[%clk 0:00:13]} 54. c5+ {[%clk 0:00:18]}  Ke7 {[%clk 0:00:13]} 55. Bxa2 {[%clk 0:00:17]}  Rxa2 {[%clk 0:00:14]} 56. Ke5 {[%clk 0:00:18]}  Rb2 {[%clk 0:00:14]} 57. Kf5 {[%clk 0:00:18]}  Rg2 {[%clk 0:00:14]} 0-1


[Site "https://www.chess.com"]

[Event "Titled Tuesday Blitz September 27 Early 2022"]
[White "Flis, Pawel"]
[Black "Nord, Alexander"]
[WhiteFideId "1112864"]
[BlackFideId "1738135"]
[WhiteElo "1735"]
[BlackElo "1968"]
[Result "1/2-1/2"]
[Round "11"]
[TimeControl "180+1"]
[Date "2022.09.27"]
[WhiteClock "0:00:10"]
[BlackClock "0:00:16"]

1. e4 {[%clk 0:03:00]}  c6 {[%clk 0:02:58]} 2. d4 {[%clk 0:02:58]}  d5 {[%clk 0:02:58]} 3. Nd2 {[%clk 0:02:59]}  dxe4 {[%clk 0:02:54]} 4. Nxe4 {[%clk 0:02:59]}  Bf5 {[%clk 0:02:50]} 5. Ng3 {[%clk 0:02:59]}  Bg6 {[%clk 0:02:48]} 6. Nf3 {[%clk 0:02:59]}  Nd7 {[%clk 0:02:44]} 7. h4 {[%clk 0:02:59]}  h6 {[%clk 0:02:40]} 8. h5 {[%clk 0:03:00]}  Bh7 {[%clk 0:02:40]} 9. Bd3 {[%clk 0:03:00]}  Bxd3 {[%clk 0:02:39]} 10. Qxd3 {[%clk 0:03:01]}  Ngf6 {[%clk 0:02:34]} 11. Bd2 {[%clk 0:03:01]}  e6 {[%clk 0:02:34]} 12. Qe2 {[%clk 0:03:01]}  Be7 {[%clk 0:02:15]} 13. Ne5 {[%clk 0:02:59]}  O-O {[%clk 0:02:01]} 14. O-O-O {[%clk 0:02:59]}  Qc7 {[%clk 0:01:58]} 15. f4 {[%clk 0:02:57]}  c5 {[%clk 0:01:58]} 16. dxc5 {[%clk 0:02:46]}  Nxc5 {[%clk 0:01:55]} 17. Be3 {[%clk 0:02:27]}  Rac8 {[%clk 0:01:53]} 18. Kb1 {[%clk 0:02:25]}  Nd5 {[%clk 0:01:50]} 19. Bxc5 {[%clk 0:02:24]}  Qxc5 {[%clk 0:01:45]} 20. Rhf1 {[%clk 0:02:13]}  Ne3 {[%clk 0:01:42]} 21. Nd7 {[%clk 0:02:01]}  Qxc2+ {[%clk 0:01:34]} 22. Qxc2 {[%clk 0:01:59]}  Rxc2 {[%clk 0:01:12]} 23. Nxf8 {[%clk 0:01:34]}  Rxg2 {[%clk 0:01:11]} 24. Rg1 {[%clk 0:01:27]}  Rxg1 {[%clk 0:00:35]} 25. Rxg1 {[%clk 0:01:28]}  Kxf8 {[%clk 0:00:32]} 26. Rc1 {[%clk 0:01:22]}  Bd6 {[%clk 0:00:23]} 27. Ne2 {[%clk 0:01:20]}  Nd5 {[%clk 0:00:20]} 28. Rd1 {[%clk 0:00:56]}  Ke7 {[%clk 0:00:19]} 29. f5 {[%clk 0:00:54]}  Nf6 {[%clk 0:00:19]} 30. fxe6 {[%clk 0:00:54]}  fxe6 {[%clk 0:00:20]} 31. Rh1 {[%clk 0:00:44]}  e5 {[%clk 0:00:20]} 32. Kc2 {[%clk 0:00:43]}  Ke6 {[%clk 0:00:20]} 33. Kd3 {[%clk 0:00:43]}  Kf5 {[%clk 0:00:21]} 34. Ng3+ {[%clk 0:00:38]}  Kg4 {[%clk 0:00:20]} 35. Ne4 {[%clk 0:00:37]}  Nd5 {[%clk 0:00:16]} 36. Nxd6 {[%clk 0:00:36]}  Nf4+ {[%clk 0:00:16]} 37. Ke4 {[%clk 0:00:34]}  Nxh5 {[%clk 0:00:16]} 38. Kxe5 {[%clk 0:00:28]}  Ng3 {[%clk 0:00:17]} 39. Rg1 {[%clk 0:00:24]}  Kf3 {[%clk 0:00:17]} 40. Rxg3+ {[%clk 0:00:22]}  Kxg3 {[%clk 0:00:18]} 41. Nf5+ {[%clk 0:00:22]}  Kg4 {[%clk 0:00:17]} 42. Nxg7 {[%clk 0:00:21]}  Kg5 {[%clk 0:00:16]} 43. Kd6 {[%clk 0:00:20]}  Kg6 {[%clk 0:00:16]} 44. Ne6 {[%clk 0:00:20]}  Kf5 {[%clk 0:00:16]} 45. Ng7+ {[%clk 0:00:18]}  Kg6 {[%clk 0:00:16]} 46. Ne6 {[%clk 0:00:18]}  Kf6 {[%clk 0:00:16]} 47. Nf4 {[%clk 0:00:17]}  Kf5 {[%clk 0:00:16]} 48. Ng2 {[%clk 0:00:17]}  h5 {[%clk 0:00:15]} 49. Kc7 {[%clk 0:00:16]}  Kg4 {[%clk 0:00:15]} 50. Kxb7 {[%clk 0:00:16]}  Kf3 {[%clk 0:00:15]} 51. Nh4+ {[%clk 0:00:16]}  Kg4 {[%clk 0:00:15]} 52. Ng6 {[%clk 0:00:15]}  Kf5 {[%clk 0:00:16]} 53. Nh4+ {[%clk 0:00:13]}  Kg4 {[%clk 0:00:16]} 54. Ng2 {[%clk 0:00:13]}  Kf3 {[%clk 0:00:16]} 55. Nh4+ {[%clk 0:00:10]}  Kg4 {[%clk 0:00:16]} 1/2-1/2


[Site "https://www.chess.com"]

[Event "Titled Tuesday Blitz September 27 Early 2022"]
[White "Gabrielian, Artur"]
[Black "Reyes, Narquingden"]
[WhiteFideId "4131002"]
[BlackFideId "5217334"]
[WhiteElo "2467"]
[BlackElo "2313"]
[Result "1-0"]
[Round "11"]
[TimeControl "180+1"]
[Date "2022.09.27"]
[WhiteClock "0:00:14"]
[BlackClock "0:00:17"]

1. e4 {[%clk 0:03:00]}  c6 {[%clk 0:02:59]} 2. d4 {[%clk 0:03:00]}  d5 {[%clk 0:02:59]} 3. e5 {[%clk 0:03:01]}  Bf5 {[%clk 0:02:58]} 4. h4 {[%clk 0:03:01]}  h5 {[%clk 0:02:57]} 5. Bd3 {[%clk 0:03:01]}  Bxd3 {[%clk 0:02:57]} 6. Qxd3 {[%clk 0:03:02]}  Qa5+ {[%clk 0:02:57]} 7. Nd2 {[%clk 0:03:02]}  Qa6 {[%clk 0:02:57]} 8. c4 {[%clk 0:03:01]}  e6 {[%clk 0:02:57]} 9. Ngf3 {[%clk 0:02:57]}  Nd7 {[%clk 0:02:57]} 10. O-O {[%clk 0:02:56]}  Ne7 {[%clk 0:02:56]} 11. b3 {[%clk 0:02:54]}  Nf5 {[%clk 0:02:56]} 12. Re1 {[%clk 0:02:49]}  Be7 {[%clk 0:02:56]} 13. g3 {[%clk 0:02:49]}  Rd8 {[%clk 0:02:55]} 14. a4 {[%clk 0:02:47]}  O-O {[%clk 0:02:53]} 15. Qc2 {[%clk 0:02:43]}  g6 {[%clk 0:02:53]} 16. c5 {[%clk 0:02:36]}  b6 {[%clk 0:02:52]} 17. b4 {[%clk 0:02:33]}  bxc5 {[%clk 0:02:52]} 18. dxc5 {[%clk 0:02:28]}  Rb8 {[%clk 0:02:51]} 19. Rb1 {[%clk 0:02:26]}  Rb7 {[%clk 0:02:45]} 20. Nf1 {[%clk 0:02:21]}  Rfb8 {[%clk 0:02:42]} 21. Bd2 {[%clk 0:02:21]}  d4 {[%clk 0:02:35]} 22. Qe4 {[%clk 0:01:50]}  Qxa4 {[%clk 0:02:31]} 23. g4 {[%clk 0:01:40]}  hxg4 {[%clk 0:02:27]} 24. Qxg4 {[%clk 0:01:40]}  Ng7 {[%clk 0:02:21]} 25. Ng3 {[%clk 0:01:38]}  Qc2 {[%clk 0:02:12]} 26. Rbc1 {[%clk 0:01:29]}  Qd3 {[%clk 0:02:09]} 27. Red1 {[%clk 0:01:28]}  Nf5 {[%clk 0:01:54]} 28. Bg5 {[%clk 0:01:24]}  Qe2 {[%clk 0:01:50]} 29. Bxe7 {[%clk 0:01:06]}  Nxe7 {[%clk 0:01:48]} 30. Re1 {[%clk 0:00:54]}  Qd3 {[%clk 0:01:46]} 31. Rcd1 {[%clk 0:00:53]}  Qc2 {[%clk 0:01:39]} 32. h5 {[%clk 0:00:45]}  Rxb4 {[%clk 0:01:35]} 33. Qg5 {[%clk 0:00:40]}  Re8 {[%clk 0:01:24]} 34. Ne4 {[%clk 0:00:39]}  d3 {[%clk 0:01:11]} 35. Nd6 {[%clk 0:00:25]}  Rf8 {[%clk 0:00:39]} 36. Qxe7 {[%clk 0:00:23]}  Rg4+ {[%clk 0:00:39]} 37. Kf1 {[%clk 0:00:21]}  Nxc5 {[%clk 0:00:36]} 38. h6 {[%clk 0:00:18]}  Rf4 {[%clk 0:00:20]} 39. h7+ {[%clk 0:00:17]}  Kg7 {[%clk 0:00:19]} 40. Qxf8+ {[%clk 0:00:16]}  Kxh7 {[%clk 0:00:17]} 41. Ng5# {[%clk 0:00:14]} 1-0


[Site "https://www.chess.com"]

[Event "Titled Tuesday Blitz September 27 Early 2022"]
[White "Goncalves, Davi Sulzbacher"]
[Black "De Souza, Cristiano Gomes"]
[WhiteFideId "2154510"]
[BlackFideId "2151758"]
[WhiteElo "2107"]
[BlackElo "2068"]
[Result "0-1"]
[Round "11"]
[TimeControl "180+1"]
[Date "2022.09.27"]
[WhiteClock "0:00:18"]
[BlackClock "0:01:57"]

1. c4 {[%clk 0:03:00]}  Nf6 {[%clk 0:02:59]} 2. Nc3 {[%clk 0:03:01]}  g6 {[%clk 0:02:51]} 3. g3 {[%clk 0:03:02]}  Bg7 {[%clk 0:02:51]} 4. Bg2 {[%clk 0:03:02]}  O-O {[%clk 0:02:48]} 5. e4 {[%clk 0:03:03]}  d6 {[%clk 0:02:48]} 6. Nge2 {[%clk 0:03:04]}  c5 {[%clk 0:02:48]} 7. O-O {[%clk 0:03:04]}  Nc6 {[%clk 0:02:48]} 8. Rb1 {[%clk 0:03:04]}  Ne8 {[%clk 0:02:48]} 9. a3 {[%clk 0:03:04]}  Nc7 {[%clk 0:02:49]} 10. b4 {[%clk 0:03:05]}  Ne6 {[%clk 0:02:49]} 11. b5 {[%clk 0:03:04]}  Ncd4 {[%clk 0:02:49]} 12. d3 {[%clk 0:02:59]}  Nxe2+ {[%clk 0:02:49]} 13. Nxe2 {[%clk 0:02:59]}  Nd4 {[%clk 0:02:49]} 14. Nxd4 {[%clk 0:02:57]}  Bxd4 {[%clk 0:02:48]} 15. Bh6 {[%clk 0:02:56]}  Bg7 {[%clk 0:02:47]} 16. Bxg7 {[%clk 0:02:56]}  Kxg7 {[%clk 0:02:48]} 17. d4 {[%clk 0:02:56]}  Qb6 {[%clk 0:02:46]} 18. d5 {[%clk 0:02:47]}  a6 {[%clk 0:02:38]} 19. a4 {[%clk 0:02:43]}  axb5 {[%clk 0:02:38]} 20. axb5 {[%clk 0:02:44]}  Ra2 {[%clk 0:02:35]} 21. Ra1 {[%clk 0:02:38]}  Qa5 {[%clk 0:02:33]} 22. Rxa2 {[%clk 0:00:28]}  Qxa2 {[%clk 0:02:31]} 23. Qa1+ {[%clk 0:00:29]}  Qxa1 {[%clk 0:02:31]} 24. Rxa1 {[%clk 0:00:30]}  e6 {[%clk 0:02:29]} 25. e5 {[%clk 0:00:22]}  dxe5 {[%clk 0:02:27]} 26. d6 {[%clk 0:00:21]}  Rd8 {[%clk 0:02:26]} 27. Rd1 {[%clk 0:00:20]}  f5 {[%clk 0:02:23]} 28. Kf1 {[%clk 0:00:20]}  Kf6 {[%clk 0:02:22]} 29. Ke2 {[%clk 0:00:19]}  e4 {[%clk 0:02:22]} 30. f3 {[%clk 0:00:20]}  Ke5 {[%clk 0:02:21]} 31. fxe4 {[%clk 0:00:19]}  fxe4 {[%clk 0:02:21]} 32. Ke3 {[%clk 0:00:19]}  Rxd6 {[%clk 0:02:20]} 33. Rxd6 {[%clk 0:00:20]}  Kxd6 {[%clk 0:02:20]} 34. Bxe4 {[%clk 0:00:19]}  e5 {[%clk 0:02:20]} 35. Bd5 {[%clk 0:00:19]}  b6 {[%clk 0:02:20]} 36. Bg8 {[%clk 0:00:18]}  h6 {[%clk 0:02:19]} 37. Bh7 {[%clk 0:00:18]}  g5 {[%clk 0:02:20]} 38. g4 {[%clk 0:00:18]}  Bxg4 {[%clk 0:02:19]} 39. Bd3 {[%clk 0:00:17]}  h5 {[%clk 0:02:16]} 40. Be4 {[%clk 0:00:17]}  h4 {[%clk 0:02:16]} 41. Bd3 {[%clk 0:00:18]}  Be6 {[%clk 0:02:15]} 42. Ke4 {[%clk 0:00:18]}  g4 {[%clk 0:02:13]} 43. Be2 {[%clk 0:00:18]}  g3 {[%clk 0:02:07]} 44. hxg3 {[%clk 0:00:19]}  h3 {[%clk 0:02:02]} 45. Kf3 {[%clk 0:00:18]}  e4+ {[%clk 0:01:58]} 46. Kxe4 {[%clk 0:00:17]}  h2 {[%clk 0:01:57]} 47. Bf3 {[%clk 0:00:18]}  Bxc4 {[%clk 0:01:57]} 0-1


[Site "https://www.chess.com"]

[Event "Titled Tuesday Blitz September 27 Early 2022"]
[White "Guerrero Olmos, Sergio"]
[Black "Kvon, Andrey"]
[WhiteFideId "2257238"]
[BlackFideId "14201356"]
[WhiteElo "2259"]
[BlackElo "2458"]
[Result "0-1"]
[Round "11"]
[TimeControl "180+1"]
[Date "2022.09.27"]
[WhiteClock "0:00:40"]
[BlackClock "0:01:07"]

1. d4 {[%clk 0:03:00]}  f5 {[%clk 0:02:58]} 2. Nf3 {[%clk 0:03:01]}  Nf6 {[%clk 0:02:59]} 3. Bf4 {[%clk 0:03:02]}  d5 {[%clk 0:02:58]} 4. e3 {[%clk 0:03:02]}  e6 {[%clk 0:02:56]} 5. c4 {[%clk 0:03:03]}  c6 {[%clk 0:02:54]} 6. Nc3 {[%clk 0:03:03]}  Bd6 {[%clk 0:02:51]} 7. Be2 {[%clk 0:03:03]}  O-O {[%clk 0:02:50]} 8. O-O {[%clk 0:03:02]}  b6 {[%clk 0:02:50]} 9. Rc1 {[%clk 0:03:01]}  Bb7 {[%clk 0:02:51]} 10. a3 {[%clk 0:02:59]}  Bxf4 {[%clk 0:02:41]} 11. exf4 {[%clk 0:02:58]}  Qd6 {[%clk 0:02:41]} 12. Ne5 {[%clk 0:02:58]}  Nbd7 {[%clk 0:02:42]} 13. b4 {[%clk 0:02:50]}  dxc4 {[%clk 0:02:29]} 14. Bxc4 {[%clk 0:02:46]}  Rad8 {[%clk 0:02:24]} 15. Qb3 {[%clk 0:02:40]}  Nd5 {[%clk 0:02:22]} 16. Nxd5 {[%clk 0:02:33]}  exd5 {[%clk 0:02:21]} 17. Bd3 {[%clk 0:02:29]}  g6 {[%clk 0:01:56]} 18. Rc2 {[%clk 0:02:29]}  Qe6 {[%clk 0:01:44]} 19. Rfc1 {[%clk 0:02:16]}  Nxe5 {[%clk 0:01:44]} 20. fxe5 {[%clk 0:02:16]}  f4 {[%clk 0:01:45]} 21. f3 {[%clk 0:02:07]}  Rc8 {[%clk 0:01:41]} 22. Qa4 {[%clk 0:01:58]}  a6 {[%clk 0:01:34]} 23. h3 {[%clk 0:01:33]}  Rc7 {[%clk 0:01:32]} 24. Qb3 {[%clk 0:01:23]}  Rfc8 {[%clk 0:01:28]} 25. a4 {[%clk 0:01:23]}  Kg7 {[%clk 0:01:29]} 26. a5 {[%clk 0:01:22]}  b5 {[%clk 0:01:27]} 27. Rc5 {[%clk 0:01:23]}  Rg8 {[%clk 0:01:22]} 28. Qb2 {[%clk 0:01:11]}  Kh8 {[%clk 0:01:20]} 29. Qd2 {[%clk 0:01:10]}  Rf7 {[%clk 0:01:18]} 30. Bb1 {[%clk 0:01:08]}  g5 {[%clk 0:01:16]} 31. Kh2 {[%clk 0:01:06]}  Qh6 {[%clk 0:01:15]} 32. Qc2 {[%clk 0:01:04]}  Qh4 {[%clk 0:01:12]} 33. Rxc6 {[%clk 0:00:54]}  Bxc6 {[%clk 0:01:10]} 34. Qxc6 {[%clk 0:00:54]}  g4 {[%clk 0:01:10]} 35. Qxd5 {[%clk 0:00:46]}  gxh3 {[%clk 0:01:06]} 36. Qxf7 {[%clk 0:00:42]}  Rxg2+ {[%clk 0:01:05]} 37. Kh1 {[%clk 0:00:41]}  Rh2+ {[%clk 0:01:06]} 38. Kxh2 {[%clk 0:00:39]}  Qg3+ {[%clk 0:01:06]} 39. Kh1 {[%clk 0:00:40]}  Qg2# {[%clk 0:01:07]} 0-1


[Site "https://www.chess.com"]

[Event "Titled Tuesday Blitz September 27 Early 2022"]
[White "Harsh Suresh"]
[Black "Aldokhin, Ivan"]
[WhiteFideId "45018464"]
[BlackFideId "24115720"]
[WhiteElo "2070"]
[BlackElo "2243"]
[Result "1-0"]
[Round "11"]
[TimeControl "180+1"]
[Date "2022.09.27"]
[WhiteClock "0:00:05"]
[BlackClock "0:00:02"]

1. Nf3 {[%clk 0:03:00]}  Nf6 {[%clk 0:02:59]} 2. b3 {[%clk 0:02:59]}  g6 {[%clk 0:03:00]} 3. Bb2 {[%clk 0:02:59]}  Bg7 {[%clk 0:03:01]} 4. e3 {[%clk 0:02:59]}  O-O {[%clk 0:03:01]} 5. c4 {[%clk 0:02:58]}  a5 {[%clk 0:03:00]} 6. a3 {[%clk 0:02:55]}  d6 {[%clk 0:03:00]} 7. Be2 {[%clk 0:02:55]}  e5 {[%clk 0:03:00]} 8. d4 {[%clk 0:02:56]}  exd4 {[%clk 0:02:57]} 9. Nxd4 {[%clk 0:02:55]}  Na6 {[%clk 0:02:56]} 10. O-O {[%clk 0:02:53]}  h5 {[%clk 0:02:49]} 11. Nc3 {[%clk 0:02:52]}  h4 {[%clk 0:02:49]} 12. Bf3 {[%clk 0:02:45]}  h3 {[%clk 0:02:46]} 13. g3 {[%clk 0:02:39]}  Re8 {[%clk 0:02:45]} 14. b4 {[%clk 0:02:36]}  axb4 {[%clk 0:02:41]} 15. axb4 {[%clk 0:02:37]}  Rb8 {[%clk 0:02:41]} 16. Rxa6 {[%clk 0:02:31]}  c5 {[%clk 0:02:16]} 17. Ra1 {[%clk 0:01:58]}  cxd4 {[%clk 0:02:14]} 18. Qxd4 {[%clk 0:01:56]}  Ng4 {[%clk 0:01:59]} 19. Qd1 {[%clk 0:01:50]}  Ne5 {[%clk 0:01:57]} 20. Be2 {[%clk 0:01:41]}  Be6 {[%clk 0:01:57]} 21. Nd5 {[%clk 0:01:21]}  Rc8 {[%clk 0:01:55]} 22. Rc1 {[%clk 0:01:17]}  Nf3+ {[%clk 0:01:31]} 23. Bxf3 {[%clk 0:01:17]}  Bxb2 {[%clk 0:01:32]} 24. Rc2 {[%clk 0:01:17]}  Bg7 {[%clk 0:01:32]} 25. Qd3 {[%clk 0:01:11]}  Qg5 {[%clk 0:01:18]} 26. Nf4 {[%clk 0:01:08]}  Bf5 {[%clk 0:01:09]} 27. e4 {[%clk 0:01:07]}  Bd7 {[%clk 0:01:05]} 28. Qxd6 {[%clk 0:01:04]}  Ba4 {[%clk 0:01:04]} 29. Ra2 {[%clk 0:00:40]}  Be5 {[%clk 0:01:03]} 30. Qd5 {[%clk 0:00:33]}  Bc6 {[%clk 0:00:57]} 31. Qd2 {[%clk 0:00:25]}  Rcd8 {[%clk 0:00:52]} 32. Qe3 {[%clk 0:00:25]}  Bd4 {[%clk 0:00:49]} 33. Qc1 {[%clk 0:00:23]}  Bxe4 {[%clk 0:00:41]} 34. Bxe4 {[%clk 0:00:22]}  Rxe4 {[%clk 0:00:41]} 35. Nxh3 {[%clk 0:00:20]}  Qf5 {[%clk 0:00:40]} 36. Nf4 {[%clk 0:00:20]}  Rc8 {[%clk 0:00:28]} 37. Ra5 {[%clk 0:00:18]}  Qd7 {[%clk 0:00:25]} 38. Rd5 {[%clk 0:00:17]}  Qc6 {[%clk 0:00:18]} 39. Qd2 {[%clk 0:00:17]}  Bf6 {[%clk 0:00:16]} 40. Rc5 {[%clk 0:00:17]}  Qe8 {[%clk 0:00:12]} 41. Rxc8 {[%clk 0:00:17]}  Qxc8 {[%clk 0:00:13]} 42. Nd5 {[%clk 0:00:17]}  Bg7 {[%clk 0:00:09]} 43. c5 {[%clk 0:00:18]}  Qe6 {[%clk 0:00:06]} 44. Nf4 {[%clk 0:00:18]}  Qf5 {[%clk 0:00:06]} 45. Qd8+ {[%clk 0:00:13]}  Kh7 {[%clk 0:00:06]} 46. Rd1 {[%clk 0:00:13]}  g5 {[%clk 0:00:06]} 47. Ng2 {[%clk 0:00:07]}  Re2 {[%clk 0:00:05]} 48. Qd3 {[%clk 0:00:04]}  Qxd3 {[%clk 0:00:04]} 49. Rxd3 {[%clk 0:00:03]}  Rb2 {[%clk 0:00:05]} 50. h4 {[%clk 0:00:03]}  Rxb4 {[%clk 0:00:06]} 51. hxg5 {[%clk 0:00:03]}  Kg6 {[%clk 0:00:06]} 52. Rd5 {[%clk 0:00:03]}  Rb1+ {[%clk 0:00:05]} 53. Kh2 {[%clk 0:00:04]}  Rb2 {[%clk 0:00:06]} 54. Nf4+ {[%clk 0:00:05]}  Kh7 {[%clk 0:00:06]} 55. Kg2 {[%clk 0:00:05]}  Kg8 {[%clk 0:00:06]} 56. Rd7 {[%clk 0:00:06]}  Be5 {[%clk 0:00:05]} 57. Rd8+ {[%clk 0:00:06]}  Kg7 {[%clk 0:00:05]} 58. Nd3 {[%clk 0:00:07]}  Re2 {[%clk 0:00:04]} 59. Re8 {[%clk 0:00:05]}  f6 {[%clk 0:00:03]} 60. gxf6+ {[%clk 0:00:05]}  Kxf6 {[%clk 0:00:03]} 61. Rxe5 {[%clk 0:00:05]}  Rxe5 {[%clk 0:00:03]} 62. Nxe5 {[%clk 0:00:05]}  Kxe5 {[%clk 0:00:04]} 63. g4 {[%clk 0:00:05]}  Kd5 {[%clk 0:00:04]} 64. g5 {[%clk 0:00:06]}  Ke6 {[%clk 0:00:02]} 65. f4 {[%clk 0:00:05]}  Kf5 {[%clk 0:00:02]} 66. Kf3 {[%clk 0:00:05]} 1-0


[Site "https://www.chess.com"]